bitfinex-derivatives/quotes_SOLF0:USTF0_20220110
["timestamp","ask_amount","ask_price","bid_price","bid_amount"]
[1641855792291,12.2213631,134.56,134.49,15.7380976]
[1641855792494,16.2213631,134.56,134.49,15.7380976]
[1641855792693,12.2213631,134.56,134.49,15.7380976]
[1641855793692,39.8861531,134.56,134.49,15.7380976]
[1641855794096,4.0,134.52,134.49,15.7380976]
[1641855794496,9.94773079,134.51,134.47,2.5247343]
[1641855794696,5.94855064,134.49,134.47,2.5247343]
[1641855794895,13.64955064,134.49,134.47,2.5247343]
[1641855795298,13.64955064,134.49,134.46,41.93542053]
[1641855795498,13.64955064,134.49,134.41,41.93542053]
[1641855795896,17.64955064,134.49,134.41,41.93542053]
[1641855796196,13.64955064,134.49,134.41,41.93542053]
[1641855796795,13.64955064,134.49,134.4,44.46015483]
[1641855798197,13.64955064,134.49,134.4,2.5247343]
[1641855798398,5.94855064,134.49,134.41,4.0]
[1641855798596,4.21059527,134.5,134.41,12.62]
[1641855798797,4.21059527,134.5,134.41,8.62]
[1641855799196,4.21059527,134.5,134.42,2.5247343]
[1641855800799,4.21059527,134.5,134.42,12.75615938]
[1641855801197,4.21059527,134.5,134.43,4.0]
[1641855801399,4.21059527,134.5,134.42,16.75615938]
[1641855801697,4.21059527,134.5,134.42,12.75615938]
[1641855801896,5.94645278,134.54,134.42,40.42094938]
[1641855802097,5.94645278,134.54,134.43,91.0]
[1641855802297,4.21068168,134.48,134.43,91.0]
[1641855802700,4.21068168,134.48,134.43,93.5247343]
[1641855802900,8.168e-05,134.48,134.46,4.0]
[1641855803100,27.66479,134.56,134.46,12.612]
[1641855803599,27.66479,134.57,134.47,4.0]
[1641855803799,27.66479,134.57,134.48,4.0]
[1641855803999,17.22475088,134.58,134.48,4.0]
[1641855804198,5.94475088,134.58,134.48,4.0]
[1641855804403,8.55913111,134.6,134.48,6.5247343]
[1641855804599,72.6757,134.59,134.48,2.5247343]
[1641855804999,72.6757,134.59,134.49,2.5247343]
[1641855805198,2.71326836,134.59,134.49,9.5557343]
[1641855805801,4.21013608,134.53,134.49,9.5557343]
[1641855805999,2.71326836,134.59,134.51,4.0]
[1641855806598,27.66479,134.61,134.5,36.0475243]
[1641855806799,27.66479,134.61,134.52,2.5247343]
[1641855807000,27.66479,134.61,134.52,9.6207343]
[1641855807806,27.66479,134.61,134.52,7.096]
[1641855808206,27.66479,134.64,134.52,7.096]
[1641855809309,2.71347654,134.63,134.52,7.096]
[1641855809710,9.9428973,134.62,134.5,55.32958]
[1641855809909,9.9428973,134.62,134.48,124.52179]
[1641855810108,9.9428973,134.62,134.48,122.66479]
[1641855810511,4.20813277,134.6,134.48,122.66479]
[1641855810911,4.20813277,134.6,134.49,2.51417627]
[1641855811312,4.20813277,134.6,134.53,2.52578929]
[1641855811710,2.71347654,134.59,134.53,2.52578929]
[1641855812112,8.65754754,134.59,134.53,2.52578929]
[1641855813215,2.71347654,134.59,134.53,2.52578929]
[1641855814017,2.71347654,134.58,134.53,30.19057929]
[1641855814317,2.71347654,134.58,134.54,4.0]
[1641855814517,10.72063735,134.62,134.57,4.0]
[1641855814717,10.72063735,134.62,134.59,4.0]
[1641855814918,59.19692805,134.63,134.59,4.0]
[1641855815118,17.26150752,134.63,134.59,4.0]
[1641855815317,17.26150752,134.63,134.58,4.0]
[1641855815718,41.93542053,134.66,134.59,4.0]
[1641855816020,41.93542053,134.66,134.57,39.63179]
[1641855816419,84.32301087,134.7,134.57,39.63179]
[1641855816618,5.93984723,134.69,134.57,35.63179]
[1641855817418,58.5980681,134.69,134.57,35.63179]
[1641855818019,62.5980681,134.69,134.57,35.63179]
[1641855818218,4.0,134.68,134.57,35.63179]
[1641855818419,5.9405356,134.67,134.57,35.63179]
[1641855818621,5.9405356,134.67,134.57,7.967]
[1641855819319,4.08727926,134.62,134.59,4.20669385]
[1641855819520,4.08727926,134.62,134.59,8.20669385]
[1641855819719,4.08727926,134.62,134.59,4.20669385]
[1641855822822,10.72280034,134.69,134.57,11.967]
[1641855823022,71.4731,134.68,134.57,11.967]
[1641855823326,71.4731,134.68,134.6,4.20727653]
[1641855823524,71.4731,134.68,134.6,11.34527653]
[1641855824625,5.93943099,134.7,134.61,4.0]
[1641855824827,69.60021053,134.72,134.61,4.0]
[1641855825026,139.80881053,134.72,134.6,11.34527653]
[1641855825226,139.80881053,134.72,134.6,15.34527653]
[1641855825726,15.64263914,134.71,134.6,15.34527653]
[1641855826026,15.64263914,134.71,134.6,43.01006653]
[1641855826427,21.58154182,134.71,134.6,39.01006653]
[1641855826625,4.08673927,134.67,134.6,39.01006653]
[1641855826828,4.08673927,134.67,134.6,34.80279]
[1641855827227,4.08673927,134.67,134.61,4.20732601]
[1641855828229,8.08673927,134.67,134.61,4.20732601]
[1641855828629,4.08673927,134.67,134.61,4.20732601]
[1641855829029,4.08673927,134.67,134.61,10.44132601]
[1641855830231,21.58157265,134.71,134.61,10.44132601]
[1641855830430,4.08615814,134.66,134.61,10.44132601]
[1641855830835,4.08615814,134.66,134.61,6.234]
[1641855831133,4.08615814,134.66,134.59,27.66479]
[1641855831335,4.08615814,134.66,134.62,4.20656374]
[1641855833036,15.64263914,134.71,134.62,11.34756374]
[1641855833436,15.64263914,134.71,134.63,5.94185828]
[1641855833637,15.64263914,134.71,134.68,4.0]
[1641855833838,15.64263914,134.74,134.68,12.39]
[1641855834038,15.64263914,134.74,134.73,27.66479]
[1641855834237,15.64263914,134.74,134.73,35.79879]
[1641855834438,61.45644991,134.81,134.73,59.79879]
[1641855834638,61.45644991,134.81,134.76,20.0]
[1641855834940,61.45644991,134.81,134.77,5.854]
[1641855835240,61.45644991,134.86,134.77,4.0]
[1641855835638,61.45644991,134.86,134.78,4.0]
[1641855835838,61.45644991,134.86,134.77,4.0]
[1641855836038,61.45644991,134.86,134.77,31.66479]
[1641855836239,4.0,134.89,134.77,31.66479]
[1641855836540,4.0,134.89,134.77,27.66479]
[1641855836739,72.4567,134.91,134.77,27.66479]
[1641855836941,5.93081403,134.89,134.77,27.66479]
[1641855838541,9.93081403,134.89,134.77,27.66479]
[1641855838740,4.0,134.87,134.77,27.66479]
[1641855838940,4.0,134.87,134.78,4.20210271]
[1641855839140,16.41257899,134.88,134.78,4.20210271]
[1641855839341,12.41257899,134.88,134.78,4.20210271]
[1641855839541,12.41257899,134.88,134.78,9.92810271]
[1641855840047,27.66479,134.87,134.78,9.92810271]
[1641855840545,5.93157899,134.88,134.78,9.92810271]
[1641855840943,9.93157899,134.88,134.78,9.92810271]
[1641855841545,5.93157899,134.88,134.78,9.92810271]
[1641855842548,5.93119284,134.89,134.79,4.0]
[1641855843246,5.93076344,134.89,134.8,4.0]
[1641855843446,38.60479,134.92,134.82,4.0]
[1641855843646,38.60479,134.92,134.83,4.0]
[1641855843847,38.60479,134.92,134.82,9.411]
[1641855844046,10.94,134.92,134.88,27.66479]
[1641855844247,34.78000096,134.93,134.88,6.487]
[1641855844447,7.11521096,134.93,134.88,6.487]
[1641855844647,69.9896783,135.01,134.89,4.0]
[1641855844846,7.10932997,135.04,134.9,4.0]
[1641855845048,75.91106886,135.05,134.89,77.925]
[1641855845448,75.91106886,135.05,134.92,4.0]
[1641855845649,75.91106886,135.05,134.92,12.611]
[1641855845848,67.38060507,135.05,134.92,12.611]
[1641855846055,5.92239002,135.09,134.98,27.66479]
[1641855846250,27.66479,135.1,134.98,34.90279]
[1641855847655,27.66479,135.1,134.99,4.0]
[1641855847852,27.66479,135.1,134.98,34.90279]
[1641855847853,27.66479,135.1,134.98,38.90279]
[1641855848252,27.66479,135.1,135.0,4.0]
[1641855848654,27.66479,135.1,134.98,51.66479]
[1641855849055,27.66479,135.1,134.98,31.66479]
[1641855849652,27.66479,135.1,134.99,4.0]
[1641855849853,2.85068563,135.08,134.99,4.0]
[1641855850153,4.0,135.07,134.98,27.66479]
[1641855850556,13.79668563,135.08,134.98,27.66479]
[1641855850958,9.79668563,135.08,134.98,27.66479]
[1641855851158,9.79668563,135.08,134.99,4.19557049]
[1641855852158,27.66479,135.02,134.99,4.19557049]
[1641855852360,4.0,135.07,134.99,4.19557049]
[1641855852861,2.85068563,135.08,134.99,4.19557049]
[1641855853059,2.85068563,135.08,134.99,10.48757049]
[1641855853259,2.85068563,135.08,135.0,1.851]
[1641855853460,2.85068563,135.08,135.03,4.0]
[1641855853661,2.85068563,135.08,135.03,12.834]
[1641855853861,4.0,135.16,135.03,12.834]
[1641855854062,4.0,135.16,135.03,8.834]
[1641855854261,27.66479,135.15,135.03,40.49879]
[1641855854461,2.85074779,135.06,135.03,36.49879]
[1641855854662,27.66479,135.15,135.04,4.0]
[1641855854862,27.66479,135.15,135.03,40.49879]
[1641855855465,27.66479,135.15,135.03,36.49879]
[1641855855665,27.66479,135.15,135.03,40.49879]
[1641855856065,27.66479,135.15,135.03,46.42315686]
[1641855856865,27.66479,135.15,135.03,42.42315686]
[1641855858168,31.66479,135.15,135.03,42.42315686]
[1641855858368,27.66479,135.15,135.03,42.42315686]
[1641855858968,31.66479,135.15,135.03,42.42315686]
[1641855859268,27.66479,135.15,135.03,42.42315686]
[1641855859668,2.84924556,135.14,135.04,4.19355584]
[1641855859869,10.48724556,135.14,135.04,4.19355584]
[1641855860472,4.0,135.1,135.04,4.19355584]
[1641855860669,10.48724556,135.14,135.04,4.19355584]
[1641855860670,2.84924556,135.14,135.04,4.19355584]
[1641855860870,2.84924556,135.14,135.04,17.27655584]
[1641855861572,2.84924556,135.14,135.05,4.0]
[1641855861870,2.84924556,135.14,135.04,43.2004839]
[1641855862071,2.84924556,135.14,135.05,4.0]
[1641855862272,2.84924556,135.14,135.08,27.66479]
[1641855862473,2.84924556,135.14,135.08,35.14779]
[1641855862876,6.84924556,135.14,135.08,35.14779]
[1641855863076,6.84924556,135.14,135.08,7.483]
[1641855863273,8.76944667,135.14,135.08,7.483]
[1641855863474,8.76944667,135.14,135.04,4.19355584]
[1641855863675,14.918695,135.14,135.04,4.19390943]
[1641855864673,8.99849389,135.14,135.05,4.0]
[1641855864872,2.56449389,135.14,135.05,13.294]
[1641855865073,2.56449389,135.14,135.05,9.294]
[1641855866374,2.56449389,135.14,135.07,27.66479]
[1641855866974,2.56449389,135.14,135.05,9.294]
[1641855867476,7.10188172,135.18,135.05,9.294]
[1641855867875,11.10188172,135.18,135.05,9.294]
[1641855868276,1.99372887,135.13,135.05,9.294]
[1641855868475,1.99372887,135.13,135.06,27.66479]
[1641855869576,1.99372887,135.13,135.06,37.58787338]
[1641855869775,1.99372887,135.13,135.06,33.58787338]
[1641855869976,1.99372887,135.13,135.06,37.58787338]
[1641855870178,1.99372887,135.13,135.06,33.58787338]
[1641855871678,1.99372887,135.13,135.07,4.0]
[1641855872078,1.99372887,135.13,135.06,35.43787338]
[1641855872278,21.3029738,135.18,135.06,27.66479]
[1641855872478,25.3029738,135.18,135.06,27.66479]
[1641855872678,1.99438064,135.12,135.06,31.85756247]
[1641855873078,4.0,135.1,135.06,31.85756247]
[1641855873279,4.0,135.1,135.06,4.19277247]
[1641855873679,10.06038064,135.12,135.06,4.19277247]
[1641855873680,14.06038064,135.12,135.06,4.19277247]
[1641855874478,10.06038064,135.12,135.06,4.19277247]
[1641855874878,10.06038064,135.12,135.06,7.247e-05]
[1641855875079,18.08146465,135.11,135.06,7.247e-05]
[1641855876083,15.38471818,135.1,135.06,7.247e-05]
[1641855876682,15.38471818,135.1,135.0,38.77566218]
[1641855876882,15.38471818,135.1,135.01,4.0]
[1641855877183,20.07609639,135.11,135.07,4.19307795]
[1641855877885,2.69674647,135.1,135.07,4.19307795]
[1641855878485,18.08146465,135.1,135.07,4.19307795]
[1641855879286,2.69674647,135.1,135.07,4.19307795]
[1641855879985,18.08146465,135.1,135.07,4.19307795]
[1641855880487,18.08146465,135.1,135.08,27.66479]
[1641855881086,20.07635782,135.1,135.08,31.85818257]
[1641855882289,18.08146465,135.09,135.08,31.85818257]
[1641855883991,2.69674647,135.09,135.08,31.85818257]
[1641855884792,2.69674647,135.09,135.08,27.66479]
[1641855885292,40.7508925,135.13,135.08,27.66479]
[1641855885492,40.7508925,135.13,135.08,36.27579]
[1641855886398,8.52157638,135.19,135.08,40.46928661]
[1641855886399,40.7508925,135.16,135.08,40.46928661]
[1641855888000,40.7508925,135.16,135.08,44.46928661]
[1641855888200,40.7508925,135.16,135.08,40.46928661]
[1641855889603,40.7508925,135.15,135.08,40.46928661]
[1641855890204,2.92484152,135.12,135.08,36.27579]
[1641855890505,2.92484152,135.12,135.09,4.19239311]
[1641855891508,4.0,135.11,135.09,4.19239311]
[1641855891706,5.738,135.11,135.08,27.66479]
[1641855891906,5.738,135.11,135.06,27.66479]
[1641855892107,9.738,135.11,135.06,27.66479]
[1641855893607,46.4888925,135.11,135.06,27.66479]
[1641855894410,49.4142102,135.11,135.09,4.19294907]
[1641855894609,4.0,135.1,134.96,21.85]
[1641855894810,49.4142102,135.11,134.96,92.771]
[1641855895010,43.6762102,135.11,134.98,4.0]
[1641855895211,43.6762102,135.11,135.0,5.92559462]
[1641855895412,43.6762102,135.11,135.01,1.851]
[1641855895810,40.7508925,135.1,135.01,5.851]
[1641855896210,40.7508925,135.1,135.02,5.92469696]
[1641855896413,2.9253177,135.11,135.03,1.851]
[1641855896614,27.66479,135.1,135.03,9.271]
[1641855896812,27.66479,135.1,135.03,7.42]
[1641855897212,31.66479,135.1,135.03,7.42]
[1641855897415,38.98179,135.1,135.02,1.85]
[1641855897613,38.98179,135.1,134.98,7.77754176]
[1641855898414,10.7033024,135.09,134.98,7.77754176]
[1641855898616,10.7033024,135.09,134.98,5.92654176]
[1641855899416,10.7033024,135.09,135.01,4.01526587]
[1641855900118,31.199008,135.1,135.01,4.01526587]
[1641855900921,3.534218,135.1,135.01,9.94054831]
[1641855901320,3.534218,135.1,135.05,24.0]
[1641855901621,3.534218,135.1,135.05,31.09]
[1641855901821,27.66479,135.13,135.09,24.0]
[1641855902021,41.75693758,135.17,135.1,4.0]
[1641855902219,41.75693758,135.17,135.13,4.0]
[1641855902419,41.75693758,135.17,135.13,7.568]
[1641855902619,41.75693758,135.17,135.14,27.66479]
[1641855902820,61.45644991,135.21,135.16,24.0]
[1641855903119,61.45644991,135.21,135.18,4.0]
[1641855903320,61.45644991,135.21,135.19,24.0]
[1641855903523,15.94478733,135.22,135.19,28.759]
[1641855903719,15.94478733,135.22,135.19,32.759]
[1641855904120,15.94478733,135.22,135.2,24.0]
[1641855904424,15.94478733,135.22,135.19,8.759]
[1641855904619,27.66479,135.29,135.21,27.66479]
[1641855904821,103.79905812,135.32,135.21,27.66479]
[1641855905020,99.79905812,135.32,135.21,51.66479]
[1641855905322,99.79905812,135.32,135.22,1.848]
[1641855905521,99.79905812,135.32,135.23,4.0]
[1641855905721,72.13426812,135.32,135.26,4.0]
[1641855905920,72.13426812,135.32,135.26,11.556]
[1641855906119,10.67781821,135.36,135.26,7.556]
[1641855906320,10.67781821,135.36,135.26,11.556]
[1641855906521,10.67781821,135.36,135.26,7.556]
[1641855906722,10.67781821,135.36,135.27,27.66479]
[1641855906924,31.66479,135.37,135.27,27.66479]
[1641855907325,27.66479,135.37,135.28,24.0]
[1641855907523,27.66479,135.37,135.27,29.51179]
[1641855908125,27.66479,135.37,135.27,27.66479]
[1641855909126,31.66479,135.37,135.27,27.66479]
[1641855909732,27.66479,135.39,135.27,27.66479]
[1641855909930,27.66479,135.39,135.29,24.0]
[1641855910131,27.66479,135.39,135.27,35.20579]
[1641855910132,4.0,135.36,135.27,35.20579]
[1641855910330,6.966,135.36,135.27,27.66479]
[1641855910732,6.966,135.36,135.27,55.32958]
[1641855911334,6.966,135.36,135.29,4.18645467]
[1641855911730,10.966,135.36,135.29,4.18645467]
[1641855911931,6.966,135.36,135.29,4.18645467]
[1641855912132,27.66479,135.39,135.29,4.18645467]
[1641855912331,4.0,135.35,135.29,4.18645467]
[1641855912932,8.514,135.36,135.29,4.18645467]
[1641855913531,4.0,135.37,135.29,4.18645467]
[1641855913732,4.0,135.38,135.29,4.18645467]
[1641855914132,37.57392545,135.39,135.29,4.18645467]
[1641855914532,33.57392545,135.39,135.29,4.18645467]
[1641855914933,37.57392545,135.39,135.27,27.66479]
[1641855915334,33.57392545,135.39,135.27,27.66479]
[1641855915535,27.66479,135.39,135.27,37.57848178]
[1641855915733,27.66479,135.39,135.27,39.42548178]
[1641855916836,27.66479,135.39,135.31,27.66479]
[1641855917036,27.66479,135.39,135.31,35.36879]
[1641855917434,27.66479,135.39,135.31,7.704]
[1641855917637,4.0,135.35,135.27,35.42548178]
[1641855917838,4.0,135.35,135.27,33.57848178]
[1641855917839,13.396,135.35,135.27,33.57848178]
[1641855918037,9.396,135.35,135.27,33.57848178]
[1641855918240,9.396,135.35,135.3,4.18657562]
[1641855918836,15.3070307,135.35,135.3,4.18657562]
[1641855919238,19.3070307,135.35,135.3,7.562e-05]
[1641855919441,4.0,135.33,135.3,7.562e-05]
[1641855919640,4.0,135.34,135.3,7.562e-05]
[1641855920039,9.9110307,135.35,135.3,7.562e-05]
[1641855920741,37.5758207,135.35,135.24,27.66479]
[1641855920941,4.0,135.34,135.24,27.66479]
[1641855921241,37.5758207,135.35,135.24,27.66479]
[1641855921841,33.5758207,135.35,135.24,27.66479]
[1641855922344,27.66479,135.35,135.28,4.18668477]
[1641855922542,27.66479,135.35,135.28,10.34868477]
[1641855922742,3.72395222,135.34,135.28,10.34868477]
[1641855923542,5.222e-05,135.34,135.29,20.0]
[1641855923743,15.38831487,135.43,135.3,4.0]
[1641855923944,15.38831487,135.43,135.32,29.91178659]
[1641855924244,15.38831487,135.43,135.32,36.11378659]
[1641855924644,4.0,135.42,135.32,12.11378659]
[1641855924844,4.0,135.42,135.32,6.202]
[1641855925943,4.0,135.41,135.32,6.202]
[1641855926343,4.0,135.43,135.32,6.202]
[1641855926544,4.0,135.44,135.32,6.202]
[1641855926946,3.72258563,135.33,135.32,6.202]
[1641855927350,2.66277693,135.43,135.32,10.202]
[1641855927747,2.66277693,135.43,135.35,20.0]
[1641855927947,27.66479,135.46,135.38,24.0]
[1641855928148,27.66479,135.46,135.38,12.67801603]
[1641855928548,27.66479,135.46,135.38,6.769]
[1641855929750,27.66479,135.46,135.38,30.769]
[1641855929952,27.66479,135.46,135.38,6.769]
[1641855930151,2.67219401,135.45,135.38,6.769]
[1641855930453,2.67219401,135.45,135.38,14.52405859]
[1641855930850,27.66479,135.46,135.38,14.52405859]
[1641855931050,27.66479,135.46,135.38,12.67805859]
[1641855931450,27.66479,135.46,135.38,6.769]
[1641855932151,21.92823342,135.45,135.37,27.66479]
[1641855932752,18.06900262,135.44,135.37,27.66479]
[1641855933554,4.0,135.41,135.37,27.66479]
[1641855933754,12.928,135.41,135.33,4.18471131]
[1641855934155,8.928,135.41,135.33,4.18471131]
[1641855934455,18.06900262,135.4,135.3,5.91250094]
[1641855934656,18.06900262,135.4,135.31,1.847]
[1641855934857,18.06900262,135.4,135.31,10.594]
[1641855935056,18.06900262,135.4,135.39,4.1830923]
[1641855935458,15.38831487,135.43,135.39,4.1830923]
[1641855937258,4.0,135.4,135.32,27.66479]
[1641855937458,4.0,135.37,135.3,27.66479]
[1641855937660,11.651,135.37,135.3,27.66479]
[1641855937859,11.651,135.37,135.24,15.38831487]
[1641855938058,4.0,135.35,135.24,15.38831487]
[1641855938261,4.0,135.3,135.21,37.80942322]
[1641855938460,12.574,135.3,135.2,15.55787947]
[1641855938859,4.0,135.29,135.2,15.55787947]
[1641855939060,4.0,135.29,135.21,27.66479]
[1641855939559,6.68068775,135.29,135.21,27.66479]
[1641855940962,4.0,135.29,135.21,27.66479]
[1641855941564,4.0,135.31,135.21,27.66479]
[1641855942165,31.66479,135.32,135.22,4.18772706]
[1641855942464,27.66479,135.32,135.22,10.26372706]
[1641855943366,100.78979,135.34,135.22,34.26372706]
[1641855943565,2.68188324,135.31,135.22,34.26372706]
[1641855943766,2.68188324,135.31,135.25,20.0]
[1641855943965,3.16523193,135.28,135.25,28.73]
[1641855944165,4.0,135.45,135.27,9.91380994]
[1641855944366,61.45644991,135.44,135.28,5.847]
[1641855944566,4.0,135.43,135.28,13.869]
[1641855944966,61.45644991,135.44,135.28,13.869]
[1641855945170,4.0,135.46,135.32,5.9116031]
[1641855945371,31.66479,135.46,135.33,27.66479]
[1641855945771,27.66479,135.46,135.33,27.66479]
[1641855946171,14.6023805,135.45,135.33,27.66479]
[1641855947174,10.6023805,135.45,135.33,27.66479]
[1641855947373,10.6023805,135.45,135.36,27.66479]
[1641855947574,10.6023805,135.45,135.36,36.47079]
[1641855948576,38.2671705,135.46,135.36,36.47079]
[1641855948780,3.36548783,135.42,135.36,36.47079]
[1641855951681,3.36548783,135.42,135.36,42.38080872]
[1641855952281,10.6023805,135.45,135.36,42.38080872]
[1641855952783,3.99812754,135.45,135.36,42.38080872]
[1641855953682,14.60050804,135.45,135.36,42.38080872]
[1641855954285,14.60050804,135.45,135.37,4.18436882]
[1641855954883,14.60050804,135.45,135.37,12.25336882]
[1641855955384,3.99812754,135.45,135.37,12.25336882]
[1641855956184,27.66479,135.46,135.37,12.25336882]
[1641855956485,3.36500327,135.44,135.37,12.25336882]
[1641855957883,3.36500327,135.44,135.37,4.18412404]
[1641855957884,10.14300327,135.44,135.37,4.18412404]
[1641855959288,4.0,135.43,135.37,4.18412404]
[1641855959786,14.14300327,135.44,135.37,4.18412404]
[1641855960388,10.778,135.44,135.37,4.18412404]
[1641855960588,3.04803887,135.43,135.37,4.18412404]
[1641855961691,3.04803887,135.43,135.33,55.32958]
[1641855962091,3.04803887,135.43,135.34,4.0]
[1641855962291,3.04803887,135.43,135.34,5.846]
[1641855962492,3.04803887,135.43,135.36,5.91006578]
[1641855962793,7.04803887,135.43,135.33,55.32958]
[1641855962996,12.87003887,135.43,135.33,55.32958]
[1641855963193,4.0,135.4,135.33,55.32958]
[1641855963393,4.0,135.39,135.33,27.66479]
[1641855963595,4.0,135.36,135.29,1.846]
[1641855963793,4.0,135.33,135.24,10.36493177]
[1641855963995,8.352,135.33,135.24,8.51793177]
[1641855965295,8.352,135.33,135.24,36.18272177]
[1641855965795,8.352,135.33,135.24,27.66479]
[1641855967801,8.352,135.33,135.26,20.0]
[1641855968000,8.352,135.33,135.3,4.0]
[1641855968202,8.352,135.33,135.3,32.467]
[1641855968400,3.05071185,135.32,135.31,5.91221128]
[1641855968599,0.0001,135.33,135.31,5.91221128]
[1641855969000,15.55324001,135.39,135.33,7.09373552]
[1641855969201,61.45644991,135.46,135.37,5.90957621]
[1641855969401,61.45644991,135.46,135.37,14.33057621]
[1641855969703,27.66479,135.47,135.37,8.421]
[1641855971005,27.66479,135.47,135.35,27.66479]
[1641855971205,35.18879,135.47,135.35,27.66479]
[1641855971409,35.18879,135.47,135.31,20.0]
[1641855971410,4.0,135.44,135.31,47.66479]
[1641855971604,6.38,135.44,135.31,47.66479]
[1641855971806,10.38,135.44,135.31,47.66479]
[1641855973407,38.04479,135.44,135.31,47.66479]
[1641855974411,10.61090912,135.43,135.31,47.66479]
[1641855974910,14.61090912,135.43,135.31,47.66479]
[1641855975111,14.61090912,135.43,135.31,27.66479]
[1641855975614,10.61090912,135.43,135.31,27.66479]
[1641855976516,10.61090912,135.43,135.33,20.0]
[1641855976717,10.61090912,135.43,135.33,30.045]
[1641855977119,10.61090912,135.43,135.33,34.045]
[1641855977317,2.43891976,135.43,135.33,34.045]
[1641855978317,2.43891976,135.43,135.33,30.045]
[1641855978518,13.04982888,135.43,135.33,30.045]
[1641855979219,2.43891976,135.43,135.33,30.045]
[1641855979422,2.43891976,135.43,135.34,27.66479]
[1641855979621,2.43891976,135.43,135.35,1.846]
[1641855979820,2.43891976,135.43,135.34,29.51079]
[1641855980921,27.66479,135.44,135.34,29.51079]
[1641855981123,2.13317012,135.42,135.34,29.51079]
[1641855981520,2.13317012,135.42,135.34,37.69480168]
[1641855981723,2.13317012,135.42,135.34,33.69480168]
[1641855983526,2.13317012,135.42,135.34,61.35959168]
[1641855983726,2.13317012,135.42,135.36,20.0]
[1641855983925,2.13317012,135.42,135.36,29.244]
[1641855984126,2.13317012,135.42,135.41,20.0]
[1641855984328,5.90612298,135.46,135.41,32.516]
[1641855984530,16.53224731,135.46,135.44,20.0]
[1641855984728,16.53224731,135.46,135.44,27.758]
[1641855984928,16.53224731,135.46,135.45,4.0]
[1641855985128,1e-08,135.46,135.44,27.758]
[1641855985527,7.08493599,135.5,135.45,4.0]
[1641855985728,7.08493599,135.5,135.47,24.0]
[1641855985928,4.0,135.61,135.47,27.815]
[1641855985929,8.49851967,135.56,135.47,27.815]
[1641855988031,4.0,135.52,135.45,27.66479]
[1641855988231,4.0,135.5,135.45,27.66479]
[1641855988430,4.0,135.5,135.41,20.0]
[1641855988632,7.488,135.52,135.41,20.0]
[1641855989231,79.80173227,135.54,135.41,26.346]
[1641855989531,69.8994,135.54,135.46,4.18020679]
[1641855989733,2.66990884,135.53,135.46,9.87620679]
[1641855990133,4.0,135.52,135.46,9.87620679]
[1641855990332,2.66990884,135.53,135.46,9.87620679]
[1641855990532,2.66990884,135.54,135.46,9.87620679]
[1641855990732,6.66990884,135.54,135.46,9.87620679]
[1641855990931,6.66990884,135.54,135.46,4.18020679]
[1641855991335,68.2417,135.55,135.42,27.66479]
[1641855991336,4.0,135.5,135.42,27.66479]
[1641855991535,11.884,135.5,135.42,27.66479]
[1641855991733,11.884,135.5,135.38,5.90926612]
[1641855992834,2.66945976,135.49,135.38,5.90926612]
[1641855993435,2.66945976,135.49,135.42,4.18154629]
[1641855994537,6.66945976,135.51,135.42,4.18154629]
[1641855995641,2.66945976,135.5,135.42,4.18154629]
[1641855997346,2.66945976,135.5,135.4,5.90818598]
[1641855997546,4.0,135.49,135.43,4.182039]
[1641855998044,10.04345976,135.51,135.43,4.182039]
[1641855998444,2.66945976,135.48,135.43,4.182039]
[1641855999347,4.0,135.45,135.43,3.9e-05]
[1641855999547,12.755,135.45,135.37,5.90957342]
[1641855999747,12.755,135.45,135.36,27.66479]
[1641856000247,2.66945976,135.44,135.36,27.66479]
[1641856001648,18.21439706,135.46,135.36,27.66479]
[1641856001849,18.21439706,135.46,135.4,27.66479]
[1641856002451,2.66945976,135.46,135.4,27.66479]
[1641856003249,18.21439706,135.47,135.4,27.66479]
[1641856004652,2.7467457,135.43,135.4,27.66479]
[1641856008356,15.5449373,135.46,135.4,27.66479]
[1641856008557,15.5449373,135.46,135.4,35.34779]